fUSD/lending_fUSD_20250417
["ID","MTS","AMOUNT","RATE_DAILY","PERIOD"]
[358265439,1744882232045,-304.87576537,0.00017899,2]
[358265441,1744882232055,-168.65743463,0.000179,2]
[358265442,1744882232336,-28.92056271,0.000179,2]
[358265443,1744882232346,-2579.20118038,0.000179,2]
[358265444,1744882232355,-28.51147488,0.00017989,2]
[358265445,1744882232365,-24814.65987854,0.0001799,2]
[358265460,1744882238191,-17866.38431954,0.0001799,2]
[358265461,1744882238200,-1054.83652404,0.0001799,2]
[358265462,1744882238208,-1054.83652404,0.0001799,2]
[358265463,1744882238218,-1054.83652404,0.0001799,2]
[358265464,1744882238227,-550.0,0.00017999,2]
[358265465,1744882238235,-182.64877669,0.00017999,2]
[358265466,1744882238244,-196.45447814,0.00017999,2]
[358265467,1744882238253,-1649752.3773509,0.00018,2]
[358265468,1744882238264,-436.17999782,0.00018,2]
[358265479,1744882240168,-974.55526154,0.00018,2]
[358265480,1744882240180,-8107.21067733,0.00018,2]
[358265481,1744882240278,-1236.02502888,0.00018,2]
[358265482,1744882240440,-3146.35156747,0.00018,2]
[358265491,1744882243095,-1319.01797298,0.00018,2]
[358265493,1744882244149,-497.06061393,0.00018,2]
[358265494,1744882244160,-50679.70266,0.00018,2]
[358265495,1744882244171,-728.7613594,0.00018,2]
[358265496,1744882244182,-1504.131,0.00018,2]
[358265532,1744882246191,-15291.62367612,0.00018,2]
[358265539,1744882246246,-500.0,0.00018,2]
[358265551,1744882246356,-846.01517,0.00018,2]
[358265553,1744882246369,-6075.27082447,0.00018,2]
[358265559,1744882246413,-690911.41607132,0.00018,2]
[358265561,1744882246424,-4797193.82232254,0.00018,2]
[358265563,1744882246436,-3347.89821619,0.00018,2]
[358265565,1744882246473,-2314.38000043,0.00018,2]
[358265845,1744882343261,-300.0,0.00017999,2]
[358265846,1744882343287,-86050.0,0.00018,2]
[358265847,1744882419022,200.0,0.0001781,2]
[358265848,1744882459582,-874.91439314,0.000179,2]
[358265849,1744882791629,-189.11088384,0.0001799,2]
[358265851,1744883139064,200.0,0.00019212,7]
[358265852,1744883144104,-390.62167307,0.00017999,2]
[358265853,1744883151156,217.87,0.00017206,2]
[358265855,1744883233081,-609.37832693,0.00017999,2]
[358265856,1744883233104,-300.0,0.00017999,2]
[358265857,1744883233125,-518.50155834,0.00017999,2]
[358265858,1744883246145,-31.49844166,0.00017999,2]
[358265859,1744883246168,-250.0,0.00017999,2]
[358265860,1744883246192,-8741.97298332,0.00018,2]
[358265861,1744883256136,157.98,0.00015447,2]
[358265862,1744883345093,-300.0,0.00017999,2]
[358265863,1744883345113,-550.0,0.00017999,2]
[358265864,1744883345134,-85.92442317,0.00017999,2]
[358265865,1744883346173,-10380.32067595,0.00017999,2]
[358265866,1744883346195,-11521.66549149,0.00018,2]
[358265867,1744883347081,-164.826151,0.00018,2]
[358265868,1744883364109,-875.56674589,0.00018,2]
[358265869,1744883391319,588.0,0.0001799,2]
[358265870,1744883392652,-1220.03662931,0.0001799,2]
[358265882,1744883432298,-1452.52632251,0.0001799,2]
[358265883,1744883432308,-250.0,0.00017995,2]
[358265884,1744883432319,-23530.57051258,0.00018,2]
[358265885,1744883432331,-709.95288138,0.00018,2]
[358265886,1744883432343,-47966.03255306,0.00018,2]
[358265887,1744883432497,-5620.02903964,0.00018,2]
[358265888,1744883432506,-1145.65685256,0.00018,2]
[358265889,1744883432516,-150.0,0.00018274,2]
[358265890,1744883432525,-272.6394049,0.00018496,2]
[358265891,1744883432534,-227.0,0.00019079,2]
[358265892,1744883432544,-167.34,0.00019385,2]
[358265893,1744883432553,-512.17,0.00019402,2]
[358265894,1744883432563,-217.87,0.0001947,2]
[358265895,1744883432573,-5661.97,0.00019471,2]
[358265896,1744883432582,-6208.04289169,0.000196,2]
[358265914,1744883438328,-259.0074346,0.00018511,2]
[358265915,1744883438338,-20598.59864045,0.000196,2]
[358265916,1744883438347,-232.05,0.00019611,2]
[358265917,1744883438357,-420.0,0.00019735,2]
[358265918,1744883438367,-250.0,0.00019789,2]
[358265919,1744883438376,-250.0,0.000198,2]
[358265920,1744883438386,-300.0,0.00019842,2]
[358265921,1744883438397,-14797.81260793,0.000199,2]
[358265922,1744883438409,-164.63165526,0.000199,2]
[358265923,1744883438418,-1000.0,0.00019958,2]
[358265924,1744883438428,-514.0,0.0001997,2]
[358265925,1744883438439,-151.0,0.00019988,2]
[358265926,1744883438448,-214.8,0.00019988,2]
[358265927,1744883438457,-23900.0,0.00019994,2]
[358265928,1744883438467,-32843.73632038,0.00019999,2]
[358265929,1744883438478,-176.13801937,0.00019999,2]
[358265930,1744883438487,-71657.99062916,0.0002,2]
[358265931,1744883438500,-336.63214532,0.0002,2]
[358265932,1744883438511,-363.2200411,0.0002,2]
[358265933,1744883438523,-537.61999977,0.0002,2]
[358265934,1744883438535,-2021.60204838,0.0002,2]
[358265935,1744883438598,-837.7817849,0.0002,2]
[358265936,1744883438610,-16010.58607179,0.0002,2]
[358265937,1744883438619,-10000.0,0.0002,2]
[358265938,1744883438630,-1479.99852402,0.0002,2]
[358265939,1744883438639,-4295.29531118,0.0002,2]
[358265940,1744883438648,-33792.55846631,0.0002,2]
[358265941,1744883438741,-1.23356683,0.0002,2]
[358265947,1744883440327,-873.71193307,0.0002,2]
[358265948,1744883440383,-2182.76960551,0.0002,2]
[358265949,1744883440439,-3195.17497113,0.0002,2]
[358265950,1744883440722,-3273.61026304,0.0002,2]
[358265951,1744883440733,-173.16,0.00020027,2]
[358265952,1744883440742,-500.0,0.0002056,2]
[358265953,1744883440751,-160.02539444,0.0002056,2]
[358265954,1744883440760,-500.0,0.0002056,2]
[358265955,1744883440770,-500.0,0.0002056,2]
[358265956,1744883440779,-500.0,0.0002056,2]
[358265957,1744883440790,-192.35158272,0.0002056,2]
[358265958,1744883440800,-500.0,0.0002056,2]
[358265959,1744883440809,-250.0,0.00020577,2]
[358265960,1744883440819,-155.90860594,0.000207,2]
[358265961,1744883440830,-596.2,0.00020869,2]
[358265962,1744883440840,-250.0,0.00021109,2]
[358265963,1744883440850,-2478.42,0.00021217,2]
[358265964,1744883440859,-305.04556544,0.00021357,2]
[358265965,1744883440868,-587.0,0.00021639,2]
[358265966,1744883440878,-217.87,0.00021733,2]
[358265967,1744883440887,-532.6,0.0002181,2]
[358265968,1744883440896,-1589.37978637,0.000219,2]
[358265972,1744883444426,-2402.14782765,0.000219,2]
[358265983,1744883446312,-1086.1368,0.000219,2]
[358265984,1744883446325,-399.49312001,0.000219,2]
[358265985,1744883446347,-22.9748124,0.000219,2]
[358265996,1744883534475,245.0,0.00017,2]
[358265997,1744883534501,5.0,0.00017,2]
[358266002,1744884003900,-300.0,0.00019,2]
[358266003,1744884003925,-43.82439314,0.00019,2]
[358266004,1744884033959,-313.48707,0.00019,2]
[358266005,1744884043499,-142.68853686,0.00019,2]
[358266008,1744884431121,-250.0,0.00020437,2]
[358266009,1744884431141,-150.0,0.00020858,5]
[358266010,1744884431161,-250.0,0.00020935,2]
[358266011,1744884431182,-350.0,0.00021,2]
[358266012,1744884431200,-165.67323406,0.000219,2]
[358266013,1744884431219,-250.0,0.00021972,2]
[358266014,1744884431238,-513.19019338,0.00022,7]
[358266015,1744884431259,-300.0,0.00022999,2]
[358266016,1744884431279,-300.0,0.00022999,2]
[358266017,1744884431303,-13.88432792,0.00023,2]
[358266020,1744884545123,-246.86665344,0.00020858,5]
[358266021,1744884545145,-250.0,0.00021879,2]
[358266022,1744884545165,-250.0,0.00022586,2]
[358266023,1744884545191,-250.0,0.00022943,2]
[358266024,1744884545214,-213.0,0.00022999,2]
[358266025,1744884545239,-386.11567208,0.00023,2]
[358266026,1744884545261,-999.99,0.00023,2]
[358266027,1744884545282,-7214.66,0.00023,2]
[358266028,1744884545304,-180.80718569,0.00023,2]
[358266029,1744884545326,-9999.99,0.00023,2]
[358266030,1744884545348,-1430.52425643,0.00023,2]
[358266031,1744884568176,-218.39353314,0.000229,2]
[358266032,1744884568200,-14205.05574357,0.00023,2]
[358266033,1744884568221,-150.99,0.00023,2]
[358266034,1744884568246,-150.99,0.00023,2]
[358266035,1744884568269,-299.99,0.00023,7]
[358266036,1744884568290,-200.0,0.00023,2]
[358266037,1744884568311,-6753.426071,0.00023139,2]
[358266038,1744884568333,-66557.559309,0.00023155,2]
[358266039,1744884568476,-9999.99,0.00023171,2]
[358266040,1744884568496,-2241.81,0.00023171,2]
[358266041,1744884568517,-173.16,0.00023332,2]
[358266042,1744884568537,-463.31949792,0.00024055,2]
[358266043,1744884568556,-240.55,0.0002417,2]
[358266044,1744884568576,-150.58,0.000249,2]
[358266045,1744884568597,-200.0,0.00025189,7]
[358266046,1744884568617,-23635.25,0.00025189,2]
[358266047,1744884568638,-2000.0,0.00025481,2]
[358266048,1744884568657,-250.0,0.00026163,2]
[358266049,1744884568678,-150.0,0.00026163,2]
[358266050,1744884568701,-3186.81315628,0.000265,5]
[358266051,1744884568722,-172.28,0.00026651,2]
[358266052,1744884568743,-253.6,0.00027397,2]
[358266053,1744884568764,-9720.44,0.00027397,2]
[358266054,1744884568785,-13757.55,0.00027397,2]
[358266055,1744884568806,-157.98,0.00028354,2]
[358266056,1744884568826,-253.6,0.00028767,2]
[358266057,1744884568849,-1544.85178362,0.0003,2]
[358266058,1744884568869,-794.81,0.00030127,3]
[358266059,1744884568888,-253.6,0.00030137,2]
[358266060,1744884568908,-253.6,0.00031507,2]
[358266061,1744884568930,-253.6,0.00032877,2]
[358266062,1744884568952,-179.51,0.00032877,30]
[358266063,1744884568973,-150.32,0.00032877,2]
[358266064,1744884568994,-300.0,0.00033905,2]
[358266065,1744884569017,-150.0,0.00034548,10]
[358266066,1744884569037,-161.14,0.00034636,30]
[358266067,1744884569058,-266.3,0.00034883,2]
[358266068,1744884569079,-185.18,0.00034956,2]
[358266069,1744884569100,-1000.0,0.00035077,2]
[358266070,1744884569119,-644.67624946,0.00036,2]
[358266071,1744884569139,-170.88,0.00036277,2]
[358266072,1744884569160,-715.68787425,0.00036985,5]
[358266073,1744884569181,-715.68787426,0.00036985,5]
[358266074,1744884569201,-500.0,0.00036986,2]
[358266075,1744884569222,-185.18,0.0003722,2]
[358266076,1744884569245,-2531.37,0.00037912,2]
[358266077,1744884569267,-1000.0,0.00039462,2]
[358266078,1744884569289,-185.18,0.00039484,2]
[358266079,1744884569310,-172.28,0.00039977,2]
[358266080,1744884569330,-498.8,0.0004,120]
[358266081,1744884569350,-442.2515,0.00040888,7]
[358266082,1744884569370,-173.0,0.00041,14]
[358266083,1744884569391,-254.317,0.00041409,61]
[358266084,1744884569413,-1170.50901941,0.00041409,61]
[358266088,1744884631387,-350.55089011,0.000231,2]
[358266089,1744884631399,-3683.60934529,0.00027095,2]
[358266090,1744884631410,-278.94979662,0.00041409,61]
[358266091,1744884631435,-351.11418397,0.00041409,61]
[358266092,1744884631446,-185.18,0.00041748,2]
[358266093,1744884631460,-161.14,0.00043194,30]
[358266094,1744884631474,-1000.0,0.00043846,2]
[358266095,1744884631486,-2714.17651659,0.00043888,30]
[358266096,1744884631597,-336.66692717,0.00043888,30]
[358266097,1744884631614,-929.42065624,0.00043888,30]
[358266098,1744884631625,-300.0,0.00044,120]
[358266099,1744884631637,-185.18,0.00044012,2]
[358266100,1744884631648,-126.69138376,0.000447,2]
[358266101,1744884631705,-359.189994,0.000447,2]
[358266102,1744884631719,-514.11862224,0.000447,2]
[358266103,1744884631731,-250.0,0.0004555,2]
[358266104,1744884631743,-1668.31794326,0.0004555,2]
[358266105,1744884631758,-8331.67205674,0.0004555,2]
[358266106,1744884631769,-185.18,0.00046275,2]
[358266107,1744884631781,-550.0,0.00047444,5]
[358266108,1744884631792,-5497.94794326,0.00047445,15]
[358266125,1744884637612,-12052.0418942,0.00047445,15]
[358266126,1744884637621,-4719.43742594,0.000475,120]
[358266127,1744884637630,-2337.89193789,0.000475,2]
[358266128,1744884637642,-6845.54806211,0.000475,2]
[358266129,1744884637651,-629.79156249,0.00047545,2]
[358266130,1744884637663,-183.23273751,0.00047545,2]
[358266131,1744884637672,-444.82512968,0.00047545,2]
[358266132,1744884637720,-1137.34957032,0.00047545,2]
[358266133,1744884637729,-621.501,0.00047545,2]
[358266134,1744884637739,-2357.4047,0.00047545,2]
[358266135,1744884637749,-15245.32392145,0.00047545,2]
[358266136,1744884637935,-489.78398155,0.00047545,2]
[358266299,1744884639616,-3380.564497,0.00047545,2]
[358266301,1744884639625,-487.635503,0.00047545,2]
[358266304,1744884639636,-5280.276997,0.00047545,2]
[358266306,1744884639645,-7222.47521085,0.00047645,2]
[358266320,1744884641255,-0.00576344,0.00047645,2]
[358266321,1744884641268,-1177.36941063,0.00047645,2]
[358266322,1744884641280,-27727.33691508,0.00047645,2]
[358266323,1744884641290,-1000.0,0.00047645,2]
[358266324,1744884641301,-150.0,0.000479,120]
[358266325,1744884641310,-1000.0,0.00048231,2]
[358266326,1744884641320,-500.0,0.00048247,2]
[358266327,1744884641329,-203.03970527,0.000485,60]
[358266328,1744884641338,-185.18,0.00048539,2]
[358266329,1744884641348,-17549.98983738,0.00048829,15]
[358266330,1744884641357,-266.3,0.00048836,2]
[358266331,1744884641367,-2885.3981,0.00048907,2]
[358266332,1744884641377,-500.0,0.00048907,2]
[358266333,1744884641386,-1000.0,0.00048987,2]
[358266334,1744884641396,-2500.0,0.00048987,2]
[358266335,1744884641406,-250.0,0.00049,30]
[358266336,1744884641416,-750.57915288,0.00049,5]
[358266337,1744884641424,-20000.0,0.00049187,5]
[358266338,1744884641434,-10035.0,0.00049327,2]
[358266339,1744884641443,-486246.3202,0.0004938,2]
[358266340,1744884641452,-1010.6538,0.0004948,30]
[358266341,1744884641462,-3386.12122252,0.0005,5]
[358266342,1744884641471,-17549.98983738,0.00050213,15]
[358266343,1744884641481,-213.0,0.00050213,2]
[358266344,1744884641491,-770.0,0.00050215,15]
[358266345,1744884641501,-37244.236,0.00050268,2]
[358266346,1744884641511,-225.0,0.00050391,120]
[358266347,1744884641521,-2765.08,0.00050402,2]
[358266348,1744884641531,-5000.0,0.00050412,120]
[358266349,1744884641541,-179.54374071,0.00050412,40]
[358266350,1744884641552,-1056.98376422,0.00050412,22]
[358266351,1744884641561,-160.88883066,0.00050412,27]
[358266352,1744884641570,-180.68658262,0.00050412,27]
[358266353,1744884641580,-182.45447947,0.00050412,29]
[358266354,1744884641590,-21970.69478228,0.00050412,15]
[358266355,1744884641600,-500.0,0.0005049,120]
[358266356,1744884641609,-2001.07006835,0.00050498,2]
[358266357,1744884641619,-242.2,0.00050498,120]
[358266358,1744884641628,-2765.08,0.00050502,2]
[358266359,1744884641638,-160.56827895,0.00050502,7]
[358266360,1744884641648,-253.98059422,0.00050511,120]
[358266361,1744884641658,-264.23371456,0.00050511,120]
[358266362,1744884641668,-1096.0,0.00050512,120]
[358266363,1744884641677,-375.0,0.00050512,120]
[358266364,1744884641687,-192116.98995152,0.00050512,120]
[358266365,1744884641699,-802.5534407,0.00050512,120]
[358266366,1744884641714,-2150.11756893,0.00050512,120]
[358266367,1744884641864,-3768.891,0.00050512,120]
[358266369,1744884641877,-4921.11770998,0.00050512,120]
[358266370,1744884641889,-477.99359215,0.00050512,120]
[358266378,1744884642452,-4213.07855643,0.00050512,120]
[358266380,1744884642464,-1685.38341313,0.00050512,120]
[358266381,1744884642516,-5888.00212745,0.00050512,120]
[358266382,1744884642559,-301792.65114346,0.00050512,120]
[358266383,1744884642568,-20028.19152402,0.00050512,2]
[358266384,1744884642577,-846.36938965,0.00050512,30]
[358266385,1744884642587,-266686.6457448,0.00050512,30]
[358266386,1744884642612,-1683.4663252,0.00050512,30]
[358266387,1744884642720,-16067.89268465,0.00050512,30]
[358266388,1744884642731,-754.32475265,0.00050512,30]
[358266389,1744884642743,-293.75433028,0.00050512,30]
[358266402,1744884643939,-17.87289088,0.00050512,30]
[358266403,1744884645690,-413868.23738896,0.00050512,30]
[358266404,1744884645700,-132937.05260891,0.00050512,30]
[358266405,1744884645709,-150.0,0.00050512,30]
[358266406,1744884645717,-150.0,0.00050512,30]
[358266407,1744884645726,-150.0,0.00050512,30]
[358266408,1744884645735,-150.0,0.00050512,30]
[358266409,1744884645744,-150.0,0.00050512,30]
[358266410,1744884645753,-150.0,0.00050512,30]
[358266411,1744884645762,-150.0,0.00050512,30]
[358266412,1744884645771,-150.0,0.00050512,30]
[358266413,1744884645781,-150.0,0.00050512,30]
[358266414,1744884645790,-150.0,0.00050512,30]
[358266415,1744884645799,-150.0,0.00050512,30]
[358266416,1744884645808,-244.3,0.00050512,30]
[358266417,1744884645817,-150.0,0.00050512,30]
[358266418,1744884645826,-150.0,0.00050512,30]
[358266419,1744884645835,-150.0,0.00050512,30]
[358266420,1744884645844,-150.0,0.00050512,30]
[358266421,1744884645853,-150.0,0.00050512,30]
[358266422,1744884645866,-247.0,0.00050512,30]
[358266423,1744884645875,-1523.2782894,0.00050512,30]
[358266424,1744884645884,-5557.0,0.00050512,30]
[358266425,1744884645893,-200.0,0.000507,18]
[358266426,1744884645903,-500.0,0.000508,18]
[358266428,1744884645913,-185.18,0.00050803,2]
[358266430,1744884645923,-800.0,0.000509,18]
[358266432,1744884645932,-189.31027352,0.00051,120]
[358266434,1744884645941,-800.0,0.00051,99]
[358266436,1744884645950,-10179.1481956,0.00051188,4]
[358266438,1744884645959,-10179.1481956,0.00051456,4]
[358266440,1744884645969,-21970.69478225,0.00051466,15]
[358266442,1744884645978,-17549.98983738,0.00051597,15]
[358266444,1744884645986,-161.14,0.00051752,120]
[358266446,1744884645995,-10179.1481956,0.0005199,4]
[358266448,1744884646005,-1000.0,0.00052,120]
[358266450,1744884646014,-10179.1481956,0.00052511,4]
[358266452,1744884646024,-21970.69478225,0.0005252,15]
[358266454,1744884646033,-1000.0,0.00052616,120]
[358266456,1744884646043,-179.54374065,0.0005277,49]
[358266458,1744884646052,-10179.1481956,0.00052925,4]
[358266460,1744884646062,-17549.98983738,0.00052981,15]
[358266463,1744884646071,-658.12,0.00053,100]
[358266466,1744884646080,-185.18,0.00053067,2]
[358266469,1744884646089,-160.88883066,0.00053097,30]
[358266471,1744884646099,-533.0,0.00053147,15]
[358266473,1744884646108,-10179.1481956,0.00053565,4]
[358266475,1744884646117,-21970.69478225,0.00053575,15]
[358266477,1744884646126,-500.0,0.00053881,10]
[358266479,1744884646135,-10179.1481956,0.0005396,4]
[358266481,1744884646144,-20358.2963913,0.0005397,4]
[358266483,1744884646153,-30537.4445869,0.0005398,4]
[358266485,1744884646163,-50895.7409782,0.0005399,4]
[358266487,1744884646173,-14451.0361859,0.0005399,4]
[358266489,1744884646181,-99880.0,0.00054,30]
[358266491,1744884646191,-7225.51809294,0.00054043,4]
[358266493,1744884646200,-10179.1481956,0.00054054,4]
[358266495,1744884646209,-3612.75904647,0.00054054,4]
[358266497,1744884646219,-11522.74284497,0.00054064,2]
[358266499,1744884646228,-17549.98983738,0.00054364,15]
[358266501,1744884646237,-500.62935892,0.00054405,10]
[358266503,1744884646247,-500.0,0.00054405,10]
[358266505,1744884646256,-500.0,0.00054405,10]
[358266507,1744884646266,-3612.75904647,0.00054434,4]
[358266509,1744884646276,-20358.2963913,0.00054619,4]
[358266511,1744884646285,-3612.75904647,0.00054619,4]
[358266513,1744884646294,-21970.69478225,0.00054629,15]
[358266515,1744884646304,-10179.1481956,0.0005466,4]
[358266517,1744884646313,-10838.2771394,0.0005466,4]
[358266519,1744884646322,-40716.5927826,0.00054754,4]
[358266521,1744884646332,-21676.5542788,0.00054754,4]
[358266523,1744884646341,-10179.1481956,0.00054754,4]
[358266525,1744884646351,-7225.51809294,0.00054754,4]
[358266527,1744884646360,-10179.1481956,0.00054764,4]
[358266529,1744884646369,-32514.8314182,0.00054764,4]
[358266531,1744884646379,-3612.75904647,0.00054764,4]
[358266533,1744884646388,-18063.7952323,0.00054774,4]
[358266535,1744884646397,-151.0,0.00054774,30]
[358266537,1744884646407,-151.0,0.00054774,30]
[358266539,1744884646416,-151.0,0.00054774,30]
[358266541,1744884646426,-151.0,0.00054774,30]
[358266543,1744884646436,-151.0,0.00054774,30]
[358266545,1744884646445,-151.0,0.00054774,30]
[358266547,1744884646454,-151.0,0.00054774,30]
[358266548,1744884646463,-151.0,0.00054774,30]
[358266550,1744884646472,-235.33061585,0.00054774,30]
[358266552,1744884646481,-10838.2771394,0.00054774,4]
[358266554,1744884646490,-36127.5904647,0.00054784,4]
[358266556,1744884646500,-12500.0,0.00054784,10]
[358266558,1744884646509,-12500.0,0.00054784,10]
[358266560,1744884646519,-12500.0,0.00054784,10]
[358266562,1744884646528,-97817.750198,0.00054794,120]
[358266564,1744884646538,-155.207611,0.00054794,120]
[358266566,1744884646547,-160.584375,0.00054794,120]
[358266568,1744884646555,-161.108691,0.00054794,120]
[358266570,1744884646564,-3011.654069,0.00054794,120]
[358266572,1744884646574,-500.0,0.00054794,120]
[358266574,1744884646583,-500.0,0.00054794,120]
[358266576,1744884646592,-500.0,0.00054794,120]
[358266578,1744884646601,-500.0,0.00054794,120]
[358266580,1744884646610,-500.0,0.00054794,120]
[358266582,1744884646619,-182.21865226,0.00054794,120]
[358266584,1744884646628,-630.01386017,0.00054794,120]
[358266586,1744884646638,-500.0,0.00054794,120]
[358266588,1744884646647,-500.0,0.00054794,120]
[358266590,1744884646656,-231.04592648,0.00054794,120]
[358266592,1744884646665,-500.0,0.00054794,120]
[358266594,1744884646675,-300.01262713,0.00054794,120]
[358266596,1744884646688,-500.0,0.00054794,120]
[358266598,1744884646698,-500.0,0.00054794,120]
[358266600,1744884646707,-500.0,0.00054794,120]
[358266602,1744884646717,-616.03605027,0.00054794,120]
[358266604,1744884646726,-500.0,0.00054794,120]
[358266606,1744884646735,-500.0,0.00054794,120]
[358266608,1744884646744,-500.0,0.00054794,120]
[358266610,1744884646753,-500.0,0.00054794,120]
[358266612,1744884646763,-500.0,0.00054794,120]
[358266614,1744884646771,-515.51627235,0.00054794,120]
[358266616,1744884646781,-500.0,0.00054794,120]
[358266618,1744884646790,-500.0,0.00054794,120]
[358266620,1744884646799,-500.0,0.00054794,120]
[358266621,1744884646808,-500.0,0.00054794,120]
[358266623,1744884646817,-500.0,0.00054794,120]
[358266625,1744884646826,-500.0,0.00054794,120]
[358266627,1744884646835,-540.36,0.00054794,120]
[358266629,1744884646844,-500.0,0.00054794,120]
[358266631,1744884646854,-500.0,0.00054794,120]
[358266633,1744884646865,-500.0,0.00054794,120]
[358266635,1744884646874,-500.0,0.00054794,120]
[358266637,1744884646883,-500.0,0.00054794,7]
[358266639,1744884646892,-500.0,0.00054794,120]
[358266641,1744884646903,-516.48895626,0.00054794,120]
[358266643,1744884646913,-500.0,0.00054794,120]
[358266645,1744884646922,-500.0,0.00054794,120]
[358266647,1744884646933,-500.0,0.00054794,120]
[358266649,1744884646942,-505.7517034,0.00054794,120]
[358266651,1744884646951,-508.03341372,0.00054794,120]
[358266653,1744884646960,-500.0,0.00054794,120]
[358266655,1744884646970,-500.0,0.00054794,120]
[358266657,1744884646979,-326.97762858,0.00054794,120]
[358266659,1744884646988,-638.8407812,0.00054794,120]
[358266661,1744884646997,-500.0,0.00054794,14]
[358266663,1744884647006,-525.15080569,0.00054794,120]
[358266665,1744884647016,-500.0,0.00054794,120]
[358266667,1744884647025,-500.0,0.00054794,120]
[358266669,1744884647034,-500.0,0.00054794,120]
[358266671,1744884647043,-500.0,0.00054794,120]
[358266673,1744884647053,-527.89071305,0.00054794,120]
[358266675,1744884647062,-504.46144988,0.00054794,120]
[358266677,1744884647070,-500.0,0.00054794,14]
[358266679,1744884647079,-527.62975357,0.00054794,120]
[358266681,1744884647088,-300.0,0.00054794,120]
[358266683,1744884647098,-500.0,0.00054794,120]
[358266685,1744884647107,-500.0,0.00054794,120]
[358266687,1744884647115,-500.0,0.00054794,120]
[358266689,1744884647125,-500.0,0.00054794,120]
[358266691,1744884647135,-500.0,0.00054794,120]
[358266693,1744884647143,-151.0,0.00054794,120]
[358266695,1744884647153,-500.0,0.00054794,120]
[358266697,1744884647162,-510.42200018,0.00054794,120]
[358266699,1744884647171,-622.16128434,0.00054794,120]
[358266701,1744884647180,-500.0,0.00054794,120]
[358266703,1744884647189,-500.0,0.00054794,120]
[358266705,1744884647199,-2000.0,0.00054794,2]
[358266707,1744884647208,-500.0,0.00054794,120]
[358266709,1744884647218,-507.18880618,0.00054794,120]
[358266711,1744884647227,-600.94753815,0.00054794,120]
[358266713,1744884647237,-500.0,0.00054794,120]
[358266727,1744884647357,-498.0,0.00054794,120]
[358266729,1744884647367,-500.0,0.00054794,120]
[358266731,1744884647376,-401.41421723,0.00054794,120]
[358266733,1744884647386,-500.0,0.00054794,120]
[358266734,1744884647395,-500.0,0.00054794,120]
[358266736,1744884647404,-504.31198363,0.00054794,120]
[358266738,1744884647413,-500.0,0.00054794,120]
[358266740,1744884647423,-500.0,0.00054794,120]
[358266742,1744884647432,-500.0,0.00054794,120]
[358266744,1744884647441,-505.7285063,0.00054794,120]
[358266746,1744884647450,-156.454995,0.00054794,120]
[358266748,1744884647459,-500.0,0.00054794,120]
[358266750,1744884647469,-549.25891801,0.00054794,120]
[358266752,1744884647478,-500.0,0.00054794,120]
[358266754,1744884647488,-500.0,0.00054794,120]
[358266756,1744884647497,-500.0,0.00054794,120]
[358266758,1744884647506,-500.0,0.00054794,120]
[358266760,1744884647516,-500.0,0.00054794,120]
[358266762,1744884647526,-500.0,0.00054794,7]
[358266764,1744884647535,-500.0,0.00054794,120]
[358266766,1744884647544,-500.0,0.00054794,120]
[358266768,1744884647553,-500.0,0.00054794,120]
[358266770,1744884647562,-500.0,0.00054794,120]
[358266772,1744884647571,-500.0,0.00054794,120]
[358266774,1744884647580,-500.0,0.00054794,120]
[358266776,1744884647589,-500.0,0.00054794,120]
[358266778,1744884647598,-519.23250164,0.00054794,120]
[358266780,1744884647607,-500.0,0.00054794,120]